[Event "15th Arad Open 2022"]
[Site "Arad"]
[Date "2022.08.09"]
[Round "1.9"]
[White "Ionescu, Mihai"]
[Black "Iacoban, Anatolie"]
[Result "1-0"]
[ECO "A34"]
[WhiteElo "2250"]
[BlackElo "1821"]
[Annotator "RC"]
[PlyCount "81"]
[EventDate "2022.08.08"]
[EventType "swiss"]
[EventCountry "ROU"]
[SourceTitle "playchess.com"]
[Source "ChessBase"]
[SourceQuality "1"]
[TimeControl "5400+30"]

1. Nf3 {[%emt 0:00:11]} Nf6 {[%emt 0:01:28]} 2. c4 {[%emt 0:00:12]} c5 {[%emt 0:00:06]} 3. Nc3 {[%emt 0:00:47]} Nc6 {[%emt 0:03:44]} 4. g3 {[%emt 0:00:17]} d5 {[%emt 0:01:18]} 5. d4 {[%emt 0:00:34]} cxd4 {[%emt 0:04:30]} 6. Nxd4 {[%emt 0:00:27]} e5 {[%emt 0:06:06]} 7. Nxc6 {[%emt 0:00:24]} bxc6 {[%emt 0:00:03]} 8. cxd5 {[%emt 0:00:31]} cxd5 {[%emt 0:00:28]} 9. Bg2 {[%emt 0:00:15]} Bb7 {[%emt 0:11:32]} 10. Bg5 {[%emt 0:02:52]} e4 {[%emt 0:00:17]} 11. O-O {[%emt 0:03:46]} Qd7 {[%emt 0:07:21]} 12. Bxf6 {[%emt 0:01:00]} gxf6 {[%emt 0:00:05]} 13. Qd4 {[%emt 0:00:53]} Bg7 {[%emt 0:03:08]} 14. Rfd1 {[%emt 0:01:27]} Rd8 {[%emt 0:07:08]} 15. Qb4 {[%emt 0:02:27]} f5 {[%emt 0:10:16]} 16. e3 {[%emt 0:04:28]} Rg8 {[%emt 0:04:59]} 17. Rac1 {[%emt 0:02:12]} Be5 {[%emt 0:02:48]} 18. Bf1 {[%emt 0:01:33]} a6 {[%emt 0:04:28]} 19. Rc2 {[%emt 0:09:00]} Qe7 {[%emt 0:00:49]} 20. Qa4+ {[%emt 0:03:47]} Kf8 {[%emt 0:00:39]} 21. Rcd2 {[%emt 0:01:47]} f4 {[%emt 0:03:01]} 22. Nxd5 {[%emt 0:06:04]} fxg3 {[%emt 0:01:09]} 23. hxg3 {[%emt 0:01:02]} Bxd5 {[%emt 0:06:34]} 24. Rxd5 {[%emt 0:00:10]} Rxd5 {[%emt 0:00:02]} 25. Rxd5 {[%emt 0:00:09]} Bxg3 {[%emt 0:12:46]} 26. fxg3 {[%emt 0:01:23]} Rxg3+ {[%emt 0:00:04]} 27. Bg2 {[%emt 0:00:20]} Rxe3 {[%emt 0:00:48]} 28. Qd1 {[%emt 0:04:29]} Rg3 {[%emt 0:03:13]} 29. Rd8+ {[%emt 0:11:05]} Kg7 {[%emt 0:00:02]} 30. Qd4+ {[%emt 0:00:14]} Kh6 {[%emt 0:01:00]} 31. Qd6+ {[%emt 0:02:09]} Qxd6 {[%emt 0:00:01]} 32. Rxd6+ {[%emt 0:00:08]} Kg5 {[%emt 0:00:12]} 33. Rxa6 {[%emt 0:05:35]} f5 {[%emt 0:02:15]} 34. Re6 {[%emt 0:04:15]} Rd3 {[%emt 0:01:07]} 35. b4 {[%emt 0:03:22]} Ra3 {[%emt 0:00:21]} 36. b5 {[%emt 0:01:02]} Rxa2 {[%emt 0:00:10]} 37. Bf1 {[%emt 0:00:46]} Rb2 {[%emt 0:01:40]} 38. b6 {[%emt 0:00:07]} e3 {[%emt 0:01:56]} 39. Bg2 {[%emt 0:01:48]} e2 {[%emt 0:00:00]} 40. b7 {[%emt 0:00:00]} Kg4 {[%emt 0:00:00]} 41. Rxe2 {[%emt 0:00:00]} 1-0

[Event "15th Arad Open 2022"]
[Site "Arad"]
[Date "2022.08.09"]
[Round "1.10"]
[White "Kazarian, Anna-Maja"]
[Black "Tablan, Andrei-Damian"]
[Result "1/2-1/2"]
[ECO "B12"]
[WhiteElo "2139"]
[BlackElo "1784"]
[Annotator "RC"]
[PlyCount "159"]
[EventDate "2022.08.08"]
[EventType "swiss"]
[EventCountry "ROU"]
[SourceTitle "playchess.com"]
[Source "ChessBase"]
[SourceQuality "1"]
[TimeControl "5400+30"]

1. e4 {[%emt 0:00:03]} c6 {[%emt 0:00:09]} 2. d4 {[%emt 0:00:24]} d5 {[%emt 0:00:14]} 3. e5 {[%emt 0:02:43]} Bf5 {[%emt 0:00:34]} 4. g4 {[%emt 0:00:53]} Bd7 {[%emt 0:01:24]} 5. c4 {[%emt 0:03:04]} e6 {[%emt 0:05:30]} 6. Nc3 {[%emt 0:01:10]} Bb4 {[%emt 0:10:41]} 7. Nf3 {[%emt 0:12:22]} Ne7 {[%emt 0:06:59]} 8. Bd2 {[%emt 0:06:21]} c5 {[%emt 0:08:56]} 9. cxd5 {[%emt 0:11:05]} exd5 {[%emt 0:01:36]} 10. h3 {[%emt 0:10:34]} a6 {[%emt 0:04:07]} 11. a3 {[%emt 0:07:01]} Bxc3 {[%emt 0:04:01]} 12. Bxc3 {[%emt 0:00:06]} cxd4 {[%emt 0:05:11]} 13. Nxd4 {[%emt 0:01:12]} Nbc6 {[%emt 0:00:57]} 14. Nxc6 {[%emt 0:04:09]} Bxc6 {[%emt 0:00:47]} 15. Qd4 {[%emt 0:01:22]} Qc7 {[%emt 0:26:07]} 16. Rc1 {[%emt 0:13:16]} O-O {[%emt 0:02:57]} 17. Bd3 {[%emt 0:12:57]} f6 {[%emt 0:02:12]} 18. O-O {[%emt 0:02:42]} fxe5 {[%emt 0:00:45]} 19. Qxe5 {[%emt 0:00:06]} Qxe5 {[%emt 0:00:32]} 20. Bxe5 {[%emt 0:00:02]} Rf3 {[%emt 0:01:16]} 21. Be2 {[%emt 0:06:48]} Rxh3 {[%emt 0:03:01]} 22. Kg2 {[%emt 0:00:01]} Rb3 {[%emt 0:01:26]} 23. Bd1 {[%emt 0:01:56]} Rd3 {[%emt 0:02:32]} 24. Bc2 {[%emt 0:01:21]} Rd2 {[%emt 0:01:10]} 25. Kg3 {[%emt 0:00:41]} Re2 {[%emt 0:01:26]} 26. Rfe1 {[%emt 0:00:33]} Rxe1 {[%emt 0:01:50]} 27. Rxe1 {[%emt 0:00:01]} Re8 {[%emt 0:00:44]} 28. f4 {[%emt 0:01:01]} Nc8 {[%emt 0:01:23]} 29. Rh1 {[%emt 0:00:21]} g6 {[%emt 0:00:31]} 30. Rd1 {[%emt 0:00:38]} Nb6 {[%emt 0:01:23]} 31. Bd4 {[%emt 0:00:31]} Nc4 {[%emt 0:00:17]} 32. Kf3 {[%emt 0:00:17]} Kf7 {[%emt 0:01:51]} 33. f5 {[%emt 0:00:33]} gxf5 {[%emt 0:02:06]} 34. gxf5 {[%emt 0:00:42]} Ne5+ {[%emt 0:01:47]} 35. Kf4 {[%emt 0:00:02]} Nd7 {[%emt 0:00:41]} 36. Rh1 {[%emt 0:00:39]} Nf8 {[%emt 0:00:30]} 37. Be5 {[%emt 0:00:49]} Re7 {[%emt 0:00:50]} 38. Rg1 {[%emt 0:00:30]} Ke8 {[%emt 0:00:22]} 39. Rg8 {[%emt 0:00:20]} Kf7 {[%emt 0:00:27]} 40. Rg7+ {[%emt 0:00:00]} Ke8 {[%emt 0:00:00]} 41. Rg8 {[%emt 0:00:00]} Kf7 {[%emt 0:00:00]} 42. Rh8 {[%emt 0:00:00]} Rxe5 {[%emt 0:00:00]} 43. Kxe5 {[%emt 0:00:00]} Kg7 {[%emt 0:00:00]} 44. Rxf8 {[%emt 0:00:00]} Kxf8 {[%emt 0:00:00]} 45. Kf6 {[%emt 0:00:00]} Bb5 {[%emt 0:00:00]} 46. Ke5 {[%emt 0:00:00]} Bc6 {[%emt 0:00:00]} 47. Bd1 {[%emt 0:00:00]} Ke7 {[%emt 0:00:00]} 48. a4 {[%emt 0:01:17]} h5 {[%emt 0:00:00]} 49. f6+ {[%emt 0:00:44]} Kf8 {[%emt 0:00:00]} 50. Bxh5 {[%emt 0:00:13]} Bxa4 {[%emt 0:00:00]} 51. Kxd5 {[%emt 0:00:04]} Bc6+ {[%emt 0:00:00]} 52. Ke6 {[%emt 0:01:50]} Be4 {[%emt 0:00:00]} 53. Kd6 {[%emt 0:01:02]} Bc6 {[%emt 0:00:00]} 54. Bg6 {[%emt 0:01:54]} Bf3 {[%emt 0:01:02]} 55. Kc7 {[%emt 0:00:48]} Bd5 {[%emt 0:00:37]} 56. b4 {[%emt 0:00:27]} Bc6 {[%emt 0:01:00]} 57. Bf5 {[%emt 0:00:38]} Kf7 {[%emt 0:00:21]} 58. Bc8 {[%emt 0:00:03]} Kxf6 {[%emt 0:00:25]} 59. Bxb7 {[%emt 0:00:03]} Bb5 {[%emt 0:00:07]} 60. Kb6 {[%emt 0:00:33]} Ke7 {[%emt 0:00:32]} 61. Bxa6 {[%emt 0:00:02]} Ba4 {[%emt 0:00:10]} 62. Bb5 {[%emt 0:01:51]} Bb3 {[%emt 0:00:36]} 63. Kc7 {[%emt 0:00:30]} Bc2 {[%emt 0:00:24]} 64. Bc4 {[%emt 0:00:21]} Ba4 {[%emt 0:00:05]} 65. Be2 {[%emt 0:00:50]} Ke6 {[%emt 0:00:48]} 66. Bg4+ {[%emt 0:00:19]} Kd5 {[%emt 0:00:29]} 67. Kb6 {[%emt 0:00:38]} Kd6 {[%emt 0:00:12]} 68. Ka5 {[%emt 0:00:33]} Bc6 {[%emt 0:00:18]} 69. Kb6 {[%emt 0:00:22]} Ba4 {[%emt 0:00:14]} 70. Be2 {[%emt 0:00:09]} Bc6 {[%emt 0:00:32]} 71. Bd1 {[%emt 0:00:26]} Bd7 {[%emt 0:00:15]} 72. Ka5 {[%emt 0:00:21]} Kc7 {[%emt 0:00:06]} 73. Be2 {[%emt 0:00:37]} Kb8 {[%emt 0:00:11]} 74. Kb6 {[%emt 0:00:47]} Bf5 {[%emt 0:00:11]} 75. Ba6 {[%emt 0:00:36]} Bg4 {[%emt 0:00:08]} 76. Kc6 {[%emt 0:00:23]} Bf5 {[%emt 0:00:07]} 77. Bc4 {[%emt 0:00:32]} Bg4 {[%emt 0:00:07]} 78. b5 {[%emt 0:00:20]} Bf5 {[%emt 0:00:06]} 79. b6 {[%emt 0:00:17]} Bg4 {[%emt 0:00:06]} 80. Bd5 {[%emt 0:01:44]} 1/2-1/2

[Event "15th Arad Open 2022"]
[Site "Arad"]
[Date "2022.08.09"]
[Round "1.11"]
[White "Korcsek, Alexandru-David"]
[Black "Magold, Filip"]
[Result "0-1"]
[ECO "E54"]
[WhiteElo "1826"]
[BlackElo "2247"]
[Annotator "RC"]
[PlyCount "64"]
[EventDate "2022.08.08"]
[EventType "swiss"]
[EventCountry "ROU"]
[SourceTitle "playchess.com"]
[Source "ChessBase"]
[SourceQuality "1"]
[TimeControl "5400+30"]

1. e4 {[%emt 0:00:02]} c6 {[%emt 0:00:19]} 2. d4 {[%emt 0:00:10]} d5 {[%emt 0:00:05]} 3. exd5 {[%emt 0:00:15]} cxd5 {[%emt 0:00:06]} 4. c4 {[%emt 0:00:07]} Nf6 {[%emt 0:00:19]} 5. Nc3 {[%emt 0:00:18]} e6 {[%emt 0:00:22]} 6. Nf3 {[%emt 0:00:10]} Bb4 {[%emt 0:00:07]} 7. Bd3 {[%emt 0:00:41]} dxc4 {[%emt 0:00:07]} 8. Bxc4 {[%emt 0:00:09]} O-O {[%emt 0:00:06]} 9. O-O {[%emt 0:00:38]} b6 {[%emt 0:03:52]} 10. Qe2 {[%emt 0:05:26]} Bb7 {[%emt 0:02:46]} 11. Bg5 {[%emt 0:03:25]} Nbd7 {[%emt 0:06:09]} 12. Rad1 {[%emt 0:10:18]} Bxc3 {[%emt 0:00:26]} 13. bxc3 {[%emt 0:00:18]} Qc7 {[%emt 0:00:31]} 14. Rc1 {[%emt 0:09:41]} Bxf3 {[%emt 0:00:20]} 15. gxf3 {[%emt 0:00:17]} Nd5 {[%emt 0:00:56]} 16. Bd3 {[%emt 0:05:20]} h6 {[%emt 0:02:22]} 17. Bd2 {[%emt 0:02:25]} Nf4 {[%emt 0:00:25]} 18. Bxf4 {[%emt 0:00:41]} Qxf4 {[%emt 0:00:03]} 19. Qe4 {[%emt 0:01:21]} Qg5+ {[%emt 0:00:23]} 20. Kh1 {[%emt 0:00:34]} Nf6 {[%emt 0:00:12]} 21. Qe3 {[%emt 0:02:24]} Rac8 {[%emt 0:03:37]} 22. c4 {[%emt 0:03:41]} Rfd8 {[%emt 0:02:39]} 23. Rg1 {[%emt 0:01:25]} Qh4 {[%emt 0:01:13]} 24. Rg3 {[%emt 0:03:47]} Rxd4 {[%emt 0:01:53]} 25. Rcg1 {[%emt 0:02:39]} g5 {[%emt 0:00:42]} 26. Bf1 {[%emt 0:13:00]} Qf4 {[%emt 0:01:50]} 27. Qa3 {[%emt 0:00:28]} Rc7 {[%emt 0:01:27]} 28. h4 {[%emt 0:01:53]} Qxh4+ {[%emt 0:00:47]} 29. Rh3 {[%emt 0:00:05]} Qxf2 {[%emt 0:00:15]} 30. Rxh6 {[%emt 0:00:48]} Rh4+ {[%emt 0:00:05]} 31. Rxh4 {[%emt 0:00:07]} Qxh4+ {[%emt 0:00:02]} 32. Kg2 {[%emt 0:00:20]} Nh5 {[%emt 0:00:07]} 0-1

[Event "15th Arad Open 2022"]
[Site "Arad"]
[Date "2022.08.09"]
[Round "1.12"]
[White "Rujan, Rodel-Marinel"]
[Black "Padurean, Daniel-Cristian"]
[Result "0-1"]
[ECO "C90"]
[WhiteElo "1785"]
[BlackElo "2126"]
[Annotator "RC"]
[PlyCount "64"]
[EventDate "2022.08.08"]
[EventType "swiss"]
[EventCountry "ROU"]
[SourceTitle "playchess.com"]
[Source "ChessBase"]
[SourceQuality "1"]
[TimeControl "5400+30"]

1. e4 {[%emt 0:01:07]} e5 {[%emt 0:00:08]} 2. Nf3 {[%emt 0:00:03]} Nc6 {[%emt 0:00:05]} 3. Bc4 {[%emt 0:00:05]} Nf6 {[%emt 0:00:06]} 4. d3 {[%emt 0:00:40]} Be7 {[%emt 0:00:17]} 5. O-O {[%emt 0:00:16]} O-O {[%emt 0:00:05]} 6. Re1 {[%emt 0:00:12]} d6 {[%emt 0:00:23]} 7. c3 {[%emt 0:00:08]} Na5 {[%emt 0:03:52]} 8. Bb5 {[%emt 0:00:45]} a6 {[%emt 0:07:24]} 9. Ba4 {[%emt 0:01:30]} b5 {[%emt 0:00:24]} 10. Bc2 {[%emt 0:00:05]} c5 {[%emt 0:00:27]} 11. a4 {[%emt 0:01:19]} b4 {[%emt 0:03:11]} 12. cxb4 {[%emt 0:04:20]} cxb4 {[%emt 0:00:06]} 13. d4 {[%emt 0:00:09]} Bg4 {[%emt 0:04:27]} 14. d5 {[%emt 0:03:04]} Nd7 {[%emt 0:03:02]} 15. Be3 {[%emt 0:06:07]} Nc4 {[%emt 0:00:38]} 16. Bc1 {[%emt 0:00:05]} Nc5 {[%emt 0:05:13]} 17. Nbd2 {[%emt 0:07:20]} Na5 {[%emt 0:01:17]} 18. h3 {[%emt 0:02:03]} Bd7 {[%emt 0:01:20]} 19. b3 {[%emt 0:03:40]} Rc8 {[%emt 0:00:21]} 20. Nf1 {[%emt 0:04:27]} f5 {[%emt 0:06:19]} 21. exf5 {[%emt 0:06:41]} Bxf5 {[%emt 0:01:09]} 22. Bxf5 {[%emt 0:00:08]} Rxf5 {[%emt 0:00:03]} 23. Rb1 {[%emt 0:00:16]} Qd7 {[%emt 0:05:36]} 24. Ng3 {[%emt 0:02:20]} Rf6 {[%emt 0:11:37]} 25. Re3 {[%emt 0:01:09]} Rcf8 {[%emt 0:02:27]} 26. Bd2 {[%emt 0:00:29]} Qb7 {[%emt 0:00:18]} 27. Be1 {[%emt 0:00:11]} Rf4 {[%emt 0:05:59]} 28. Qd2 {[%emt 0:04:42]} Bh4 {[%emt 0:03:46]} 29. Nh5 {[%emt 0:01:40]} Rxf3 {[%emt 0:14:35]} 30. gxf3 {[%emt 0:00:32]} Qf7 {[%emt 0:02:02]} 31. Qxb4 {[%emt 0:05:04]} Qxh5 {[%emt 0:01:00]} 32. Qxa5 {[%emt 0:00:19]} Qg6+ {[%emt 0:00:08]} 0-1

[Event "15th Arad Open 2022"]
[Site "Arad"]
[Date "2022.08.09"]
[Round "1.13"]
[White "Ionescu, Irina"]
[Black "Parasca, Claudiu"]
[Result "1-0"]
[ECO "C42"]
[WhiteElo "2125"]
[BlackElo "1784"]
[Annotator "RC"]
[PlyCount "69"]
[EventDate "2022.08.08"]
[EventType "swiss"]
[EventCountry "ROU"]
[SourceTitle "playchess.com"]
[Source "ChessBase"]
[SourceQuality "1"]
[TimeControl "5400+30"]

1. e4 {[%emt 0:00:06]} e5 {[%emt 0:00:29]} 2. Nf3 {[%emt 0:00:05]} Nf6 {[%emt 0:00:29]} 3. Nxe5 {[%emt 0:01:22]} d6 {[%emt 0:00:09]} 4. Nf3 {[%emt 0:00:06]} Nxe4 {[%emt 0:00:09]} 5. d4 {[%emt 0:00:10]} d5 {[%emt 0:00:55]} 6. Bd3 {[%emt 0:00:23]} Nf6 {[%emt 0:00:32]} 7. O-O {[%emt 0:01:22]} Be7 {[%emt 0:00:06]} 8. h3 {[%emt 0:00:18]} O-O {[%emt 0:00:38]} 9. Re1 {[%emt 0:00:48]} h6 {[%emt 0:01:29]} 10. Nbd2 {[%emt 0:02:23]} Re8 {[%emt 0:01:56]} 11. Ne5 {[%emt 0:01:32]} Nbd7 {[%emt 0:00:37]} 12. Ndf3 {[%emt 0:00:58]} Nxe5 {[%emt 0:03:17]} 13. dxe5 {[%emt 0:03:37]} Nh7 {[%emt 0:00:34]} 14. c3 {[%emt 0:01:35]} c6 {[%emt 0:00:18]} 15. Bc2 {[%emt 0:00:11]} b6 {[%emt 0:06:00]} 16. Nd4 {[%emt 0:06:51]} Qc7 {[%emt 0:01:11]} 17. Bf4 {[%emt 0:04:33]} Nf8 {[%emt 0:01:32]} 18. Qf3 {[%emt 0:02:41]} Be6 {[%emt 0:01:55]} 19. Rad1 {[%emt 0:05:41]} a6 {[%emt 0:01:11]} 20. Nxe6 {[%emt 0:02:30]} Nxe6 {[%emt 0:00:35]} 21. Qd3 {[%emt 0:03:15]} Nf8 {[%emt 0:06:54]} 22. Qg3 {[%emt 0:00:24]} g5 {[%emt 0:02:08]} 23. h4 {[%emt 0:01:54]} Qd8 {[%emt 0:00:22]} 24. Bc1 {[%emt 0:04:47]} Kh8 {[%emt 0:00:18]} 25. hxg5 {[%emt 0:01:22]} Bxg5 {[%emt 0:04:25]} 26. f4 {[%emt 0:03:38]} Bh4 {[%emt 0:00:10]} 27. Qh3 {[%emt 0:00:39]} Bxe1 {[%emt 0:12:00]} 28. Rxe1 {[%emt 0:01:02]} d4 {[%emt 0:03:27]} 29. f5 {[%emt 0:04:04]} Nh7 {[%emt 0:04:17]} 30. f6 {[%emt 0:08:04]} d3 {[%emt 0:03:14]} 31. Bxd3 {[%emt 0:01:07]} Rg8 {[%emt 0:00:27]} 32. Bxh7 {[%emt 0:01:19]} Qc8 {[%emt 0:11:58]} 33. Bf5 {[%emt 0:02:23]} Qf8 {[%emt 0:02:15]} 34. Bxh6 {[%emt 0:00:32]} Rg3 {[%emt 0:00:07]} 35. Bg7+ {[%emt 0:00:22]} 1-0

[Event "15th Arad Open 2022"]
[Site "Arad"]
[Date "2022.08.09"]
[Round "1.14"]
[White "Bartha, Andrei"]
[Black "Tampea, Radu"]
[Result "0-1"]
[ECO "B34"]
[WhiteElo "1772"]
[BlackElo "2093"]
[Annotator "RC"]
[PlyCount "52"]
[EventDate "2022.08.08"]
[EventType "swiss"]
[EventCountry "ROU"]
[SourceTitle "playchess.com"]
[Source "ChessBase"]
[SourceQuality "1"]
[TimeControl "5400+30"]

1. e4 {[%emt 0:00:07]} c5 {[%emt 0:00:28]} 2. Nf3 {[%emt 0:00:16]} Nc6 {[%emt 0:00:22]} 3. d4 {[%emt 0:00:19]} cxd4 {[%emt 0:00:24]} 4. Nxd4 {[%emt 0:00:16]} g6 {[%emt 0:00:26]} 5. Nc3 {[%emt 0:00:19]} Bg7 {[%emt 0:00:31]} 6. Be3 {[%emt 0:00:16]} Nf6 {[%emt 0:00:22]} 7. Nxc6 {[%emt 0:00:58]} bxc6 {[%emt 0:01:25]} 8. e5 {[%emt 0:00:40]} Ng8 {[%emt 0:01:00]} 9. Bd4 {[%emt 0:00:25]} Qa5 {[%emt 0:00:16]} 10. e6 {[%emt 0:00:17]} Nf6 {[%emt 0:00:06]} 11. exd7+ {[%emt 0:00:17]} Bxd7 {[%emt 0:00:13]} 12. Qe2 {[%emt 0:03:37]} O-O {[%emt 0:09:22]} 13. O-O-O {[%emt 0:00:32]} Be6 {[%emt 0:00:27]} 14. Qa6 {[%emt 0:00:51]} Qc7 {[%emt 0:24:09]} 15. g3 {[%emt 0:04:22]} Rab8 {[%emt 0:15:05]} 16. Qxa7 {[%emt 0:08:09]} Rb7 {[%emt 0:00:46]} 17. Qc5 {[%emt 0:02:36]} Nd7 {[%emt 0:00:09]} 18. Qxe7 {[%emt 0:01:09]} Bxd4 {[%emt 0:00:03]} 19. Rxd4 {[%emt 0:00:37]} Qb6 {[%emt 0:00:02]} 20. Qd6 {[%emt 0:02:02]} Qxb2+ {[%emt 0:00:11]} 21. Kd2 {[%emt 0:00:10]} c5 {[%emt 0:05:59]} 22. Ra4 {[%emt 0:10:08]} Nb6 {[%emt 0:03:33]} 23. Bb5 {[%emt 0:11:05]} Nxa4 {[%emt 0:00:28]} 24. Bxa4 {[%emt 0:00:26]} Qa3 {[%emt 0:01:19]} 25. Re1 {[%emt 0:01:42]} Rb4 {[%emt 0:02:46]} 26. Qe5 {[%emt 0:03:01]} Rd4+ {[%emt 0:00:16]} 0-1

[Event "15th Arad Open 2022"]
[Site "Arad"]
[Date "2022.08.09"]
[Round "1.15"]
[White "Oltean, Cristian-Daniel"]
[Black "Donici-Maier, David"]
[Result "1/2-1/2"]
[ECO "B60"]
[WhiteElo "2158"]
[BlackElo "1786"]
[Annotator "RC"]
[PlyCount "150"]
[EventDate "2022.08.08"]
[EventType "swiss"]
[EventCountry "ROU"]
[SourceTitle "playchess.com"]
[Source "ChessBase"]
[SourceQuality "1"]
[TimeControl "5400+30"]

1. e4 {[%emt 0:00:02]} c5 {[%emt 0:00:49]} 2. Nf3 {[%emt 0:00:13]} Nc6 {[%emt 0:00:47]} 3. d4 {[%emt 0:00:06]} cxd4 {[%emt 0:00:00]} 4. Nxd4 {[%emt 0:00:00]} Nf6 {[%emt 0:01:27]} 5. Nc3 {[%emt 0:00:03]} d6 {[%emt 0:00:37]} 6. Bg5 {[%emt 0:05:56]} g6 {[%emt 0:12:14]} 7. Bxf6 {[%emt 0:02:43]} exf6 {[%emt 0:00:03]} 8. Bb5 {[%emt 0:10:44]} Bd7 {[%emt 0:01:17]} 9. O-O {[%emt 0:04:58]} Bg7 {[%emt 0:03:09]} 10. Ba4 {[%emt 0:14:53]} a6 {[%emt 0:07:27]} 11. Nxc6 {[%emt 0:03:58]} Bxc6 {[%emt 0:00:34]} 12. Bb3 {[%emt 0:12:16]} O-O {[%emt 0:02:57]} 13. Qd2 {[%emt 0:02:56]} Qd7 {[%emt 0:03:54]} 14. Rad1 {[%emt 0:03:19]} f5 {[%emt 0:10:11]} 15. exf5 {[%emt 0:04:15]} Qxf5 {[%emt 0:00:10]} 16. Nd5 {[%emt 0:03:26]} Bxd5 {[%emt 0:07:19]} 17. Bxd5 {[%emt 0:03:39]} Rac8 {[%emt 0:04:12]} 18. c4 {[%emt 0:00:55]} b5 {[%emt 0:02:49]} 19. b3 {[%emt 0:02:56]} bxc4 {[%emt 0:06:36]} 20. Bxc4 {[%emt 0:01:54]} Rfd8 {[%emt 0:01:50]} 21. Qd5 {[%emt 0:04:35]} Rc5 {[%emt 0:03:15]} 22. Qxf5 {[%emt 0:05:00]} Rxf5 {[%emt 0:00:12]} 23. Rd5 {[%emt 0:01:12]} Rxd5 {[%emt 0:03:41]} 24. Bxd5 {[%emt 0:00:09]} Rc8 {[%emt 0:01:39]} 25. Bc4 {[%emt 0:00:47]} a5 {[%emt 0:02:57]} 26. Rd1 {[%emt 0:01:20]} Be5 {[%emt 0:00:53]} 27. g3 {[%emt 0:01:11]} g5 {[%emt 0:01:27]} 28. Kg2 {[%emt 0:02:38]} Rc5 {[%emt 0:06:34]} 29. Kf3 {[%emt 0:01:46]} Kg7 {[%emt 0:03:57]} 30. Kg4 {[%emt 0:00:22]} h6 {[%emt 0:01:50]} 31. f4 {[%emt 0:00:19]} f5+ {[%emt 0:04:01]} 32. Kf3 {[%emt 0:00:37]} d5 {[%emt 0:01:09]} 33. Bd3 {[%emt 0:02:02]} Bf6 {[%emt 0:03:19]} 34. Bxf5 {[%emt 0:00:27]} d4 {[%emt 0:00:37]} 35. Bd3 {[%emt 0:00:25]} gxf4 {[%emt 0:01:34]} 36. Kxf4 {[%emt 0:01:08]} Rh5 {[%emt 0:01:42]} 37. h4 {[%emt 0:00:35]} Re5 {[%emt 0:00:43]} 38. Rc1 {[%emt 0:03:32]} Re3 {[%emt 0:00:59]} 39. Be4 {[%emt 0:00:00]} Rc3 {[%emt 0:00:00]} 40. Rh1 {[%emt 0:00:00]} Bd8 {[%emt 0:00:00]} 41. Rd1 {[%emt 0:00:00]} Bc7+ {[%emt 0:00:00]} 42. Kf5 {[%emt 0:00:00]} Rc5+ {[%emt 0:00:00]} 43. Kg4 {[%emt 0:00:00]} Be5 {[%emt 0:00:00]} 44. Bd3 {[%emt 0:00:00]} Rc3 {[%emt 0:00:00]} 45. Kf3 {[%emt 0:00:00]} Kf6 {[%emt 0:00:00]} 46. g4 {[%emt 0:00:00]} Rc7 {[%emt 0:00:38]} 47. Rg1 {[%emt 0:00:00]} Re7 {[%emt 0:00:46]} 48. g5+ {[%emt 0:00:00]} Kg7 {[%emt 0:01:48]} 49. Rc1 {[%emt 0:03:24]} Bd6 {[%emt 0:01:43]} 50. Be4 {[%emt 0:01:03]} hxg5 {[%emt 0:00:58]} 51. hxg5 {[%emt 0:00:25]} Rf7+ {[%emt 0:00:07]} 52. Ke2 {[%emt 0:00:30]} Bf4 {[%emt 0:00:57]} 53. Rc6 {[%emt 0:00:34]} Ra7 {[%emt 0:00:38]} 54. Rg6+ {[%emt 0:00:48]} Kh8 {[%emt 0:00:11]} 55. Kd3 {[%emt 0:00:42]} Be3 {[%emt 0:00:31]} 56. Bd5 {[%emt 0:02:49]} Kh7 {[%emt 0:00:45]} 57. Be4 {[%emt 0:00:32]} Kh8 {[%emt 0:00:05]} 58. Rh6+ {[%emt 0:00:29]} Kg8 {[%emt 0:00:07]} 59. Rh5 {[%emt 0:00:07]} Bf2 {[%emt 0:01:19]} 60. g6 {[%emt 0:00:06]} Be3 {[%emt 0:00:31]} 61. Rh7 {[%emt 0:00:30]} Rxh7 {[%emt 0:00:28]} 62. gxh7+ {[%emt 0:00:05]} Kg7 {[%emt 0:00:07]} 63. Kc4 {[%emt 0:00:03]} Bf2 {[%emt 0:00:38]} 64. Bd3 {[%emt 0:00:30]} Be3 {[%emt 0:00:16]} 65. a3 {[%emt 0:00:42]} Bc1 {[%emt 0:01:01]} 66. b4 {[%emt 0:00:18]} axb4 {[%emt 0:00:24]} 67. a4 {[%emt 0:00:29]} Bf4 {[%emt 0:00:26]} 68. a5 {[%emt 0:00:18]} Bb8 {[%emt 0:00:12]} 69. Kb5 {[%emt 0:00:15]} Ba7 {[%emt 0:00:17]} 70. Kxb4 {[%emt 0:00:29]} Kh8 {[%emt 0:00:20]} 71. Kb5 {[%emt 0:00:18]} Kg7 {[%emt 0:00:22]} 72. Kc6 {[%emt 0:00:32]} Kh8 {[%emt 0:00:05]} 73. Kb7 {[%emt 0:00:05]} Bc5 {[%emt 0:00:06]} 74. a6 {[%emt 0:00:23]} Kg7 {[%emt 0:00:10]} 75. Kc6 {[%emt 0:00:21]} Ba7 {[%emt 0:00:04]} 1/2-1/2

[Event "15th Arad Open 2022"]
[Site "Arad"]
[Date "2022.08.09"]
[Round "1.16"]
[White "Coicev, Matei-Andrei"]
[Black "Brosman, Alexandru"]
[Result "1-0"]
[ECO "B07"]
[WhiteElo "2087"]
[BlackElo "1729"]
[Annotator "RC"]
[PlyCount "77"]
[EventDate "2022.08.08"]
[EventType "swiss"]
[EventCountry "ROU"]
[SourceTitle "playchess.com"]
[Source "ChessBase"]
[SourceQuality "1"]
[TimeControl "5400+30"]

1. e4 {[%emt 0:00:29]} g6 {[%emt 0:00:20]} 2. d4 {[%emt 0:00:35]} Bg7 {[%emt 0:02:42]} 3. Nc3 {[%emt 0:00:12]} d6 {[%emt 0:00:18]} 4. Be3 {[%emt 0:01:09]} Nf6 {[%emt 0:00:33]} 5. Qd2 {[%emt 0:00:53]} Ng4 {[%emt 0:02:09]} 6. Bg5 {[%emt 0:01:06]} h6 {[%emt 0:00:17]} 7. Bh4 {[%emt 0:00:20]} O-O {[%emt 0:01:50]} 8. O-O-O {[%emt 0:02:06]} Nc6 {[%emt 0:02:21]} 9. Nf3 {[%emt 0:01:06]} Nf6 {[%emt 0:02:40]} 10. h3 {[%emt 0:04:15]} g5 {[%emt 0:02:57]} 11. Bg3 {[%emt 0:00:43]} Nh7 {[%emt 0:02:20]} 12. d5 {[%emt 0:09:31]} Ne5 {[%emt 0:04:45]} 13. Nd4 {[%emt 0:00:48]} e6 {[%emt 0:04:11]} 14. f4 {[%emt 0:03:26]} Ng6 {[%emt 0:02:45]} 15. dxe6 {[%emt 0:02:54]} fxe6 {[%emt 0:01:00]} 16. f5 {[%emt 0:01:20]} Nf4 {[%emt 0:01:13]} 17. Bxf4 {[%emt 0:04:01]} gxf4 {[%emt 0:01:52]} 18. Bc4 {[%emt 0:01:27]} Kh8 {[%emt 0:05:06]} 19. Bxe6 {[%emt 0:01:54]} c5 {[%emt 0:05:00]} 20. Nb3 {[%emt 0:03:25]} Bxe6 {[%emt 0:00:36]} 21. fxe6 {[%emt 0:00:03]} Qf6 {[%emt 0:06:00]} 22. Qxd6 {[%emt 0:01:27]} Rfd8 {[%emt 0:05:38]} 23. Qxc5 {[%emt 0:00:56]} Qxe6 {[%emt 0:04:21]} 24. Rxd8+ {[%emt 0:06:07]} Rxd8 {[%emt 0:00:05]} 25. Rd1 {[%emt 0:00:22]} Rxd1+ {[%emt 0:03:05]} 26. Kxd1 {[%emt 0:00:58]} Ng5 {[%emt 0:01:05]} 27. Nd2 {[%emt 0:04:21]} b6 {[%emt 0:04:30]} 28. Qd5 {[%emt 0:02:10]} Qc8 {[%emt 0:01:11]} 29. Qd3 {[%emt 0:10:52]} Ne6 {[%emt 0:01:00]} 30. Nf3 {[%emt 0:01:13]} Nc5 {[%emt 0:01:02]} 31. Qd5 {[%emt 0:00:55]} Qe8 {[%emt 0:02:55]} 32. e5 {[%emt 0:03:46]} Nd7 {[%emt 0:02:23]} 33. e6 {[%emt 0:00:24]} Nc5 {[%emt 0:00:27]} 34. Nd4 {[%emt 0:02:25]} Qe7 {[%emt 0:02:44]} 35. Nce2 {[%emt 0:04:00]} Kg8 {[%emt 0:05:31]} 36. Nxf4 {[%emt 0:04:04]} Bxd4 {[%emt 0:00:29]} 37. Qxd4 {[%emt 0:00:35]} Nxe6 {[%emt 0:00:13]} 38. Nxe6 {[%emt 0:01:22]} Qxe6 {[%emt 0:21:56]} 39. Qg4+ {[%emt 0:22:20]} 1-0